fUST/lending_fUST_20250905
["ID","MTS","AMOUNT","RATE_DAILY","PERIOD"]
[383629658,1757049040623,-590.17565658,0.00014387,2]
[383629659,1757049040632,-480.0,0.00014387,2]
[383629660,1757049040641,-480.0,0.00014387,2]
[383629661,1757049040651,-534.67,0.00014387,2]
[383629662,1757049040661,-1884.9,0.00014387,2]
[383629663,1757049040670,-480.0,0.00014387,2]
[383629664,1757049040679,-790.65,0.00014387,2]
[383629665,1757049040688,-480.0,0.00014387,2]
[383629666,1757049040698,-168.56298196,0.00014388,2]
[383629667,1757049040707,-189139.04255373,0.00014388,2]
[383629668,1757049040716,-500.0,0.00014388,2]
[383629669,1757049040726,-501.78093821,0.00014425,2]
[383629670,1757049040735,-500.0,0.00014473,2]
[383629671,1757049040747,-2778.82,0.00014482,2]
[383629672,1757049040756,-482.12719272,0.00014486,2]
[383629673,1757049040766,-480.0,0.00014486,2]
[383629674,1757049040778,-500.0,0.00014486,2]
[383629675,1757049040787,-480.0,0.00014486,2]
[383629676,1757049040796,-1394.27,0.00014486,2]
[383629677,1757049040806,-480.0,0.00014486,2]
[383629678,1757049040815,-480.0,0.00014486,2]
[383629679,1757049040824,-161.71010483,0.00014486,2]
[383629680,1757049040834,-480.0,0.00014486,2]
[383629681,1757049040843,-480.0,0.00014486,2]
[383629682,1757049040852,-480.0,0.00014486,2]
[383629683,1757049040866,-480.0,0.00014486,2]
[383629684,1757049040875,-480.0,0.00014486,2]
[383629685,1757049040884,-480.0,0.00014486,2]
[383629686,1757049040894,-238.1905722,0.00014486,2]
[383629687,1757049040905,-480.0,0.00014486,2]
[383629688,1757049040914,-480.0,0.00014486,2]
[383629689,1757049040925,-480.0,0.00014486,2]
[383629690,1757049040939,-480.0,0.00014486,2]
[383629691,1757049040949,-480.0,0.00014486,2]
[383629692,1757049040958,-480.0,0.00014486,2]
[383629693,1757049040967,-480.0,0.00014486,2]
[383629694,1757049040976,-480.0,0.00014486,2]
[383629695,1757049040985,-480.0,0.00014486,2]
[383629696,1757049040994,-480.0,0.00014486,2]
[383629697,1757049041004,-480.0,0.00014486,2]
[383629698,1757049041013,-480.0,0.00014486,2]
[383629699,1757049041023,-480.0,0.00014486,2]
[383629700,1757049041032,-480.0,0.00014486,2]
[383629701,1757049041042,-480.0,0.00014486,2]
[383629702,1757049041051,-480.0,0.00014486,2]
[383629703,1757049041060,-480.0,0.00014486,2]
[383629704,1757049041069,-480.0,0.00014486,2]
[383629705,1757049041078,-480.0,0.00014486,2]
[383629706,1757049041088,-480.0,0.00014486,2]
[383629707,1757049041097,-480.0,0.00014486,2]
[383629708,1757049041106,-480.0,0.00014486,2]
[383629709,1757049041115,-480.0,0.00014486,2]
[383629710,1757049041125,-480.0,0.00014486,2]
[383629711,1757049041134,-480.0,0.00014486,2]
[383629712,1757049041143,-480.0,0.00014486,2]
[383629713,1757049041153,-480.0,0.00014486,2]
[383629714,1757049041162,-480.0,0.00014486,2]
[383629715,1757049041172,-480.0,0.00014486,2]
[383629716,1757049041181,-480.0,0.00014486,2]
[383629717,1757049041191,-480.0,0.00014486,2]
[383629718,1757049041200,-480.0,0.00014486,2]
[383629719,1757049041210,-480.0,0.00014486,2]
[383629720,1757049041219,-365.90011165,0.00014486,2]
[383629721,1757049041229,-524.55576849,0.00014486,2]
[383629722,1757049041239,-480.0,0.00014486,2]
[383629723,1757049041248,-480.0,0.00014486,2]
[383629724,1757049041258,-480.0,0.00014486,2]
[383629725,1757049041267,-480.0,0.00014486,2]
[383629726,1757049041276,-480.0,0.00014487,2]
[383629727,1757049041286,-480.0,0.00014487,2]
[383629728,1757049041295,-480.0,0.00014487,2]
[383629729,1757049041304,-573.97,0.00014487,2]
[383629730,1757049041313,-480.0,0.00014487,2]
[383629731,1757049041323,-480.0,0.00014487,2]
[383629732,1757049041332,-480.0,0.00014487,2]
[383629733,1757049041341,-480.0,0.00014487,2]
[383629734,1757049041450,-482.64233866,0.00014487,2]
[383629735,1757049041460,-568.82,0.00014487,2]
[383629736,1757049041470,-480.0,0.00014487,2]
[383629737,1757049041480,-480.0,0.00014487,2]
[383629738,1757049041490,-480.0,0.00014487,2]
[383629739,1757049041499,-480.0,0.00014487,2]
[383629740,1757049041509,-602.11,0.00014487,2]
[383629741,1757049041518,-480.0,0.00014487,2]
[383629742,1757049041527,-480.0,0.00014487,2]
[383629743,1757049041537,-480.0,0.00014487,2]
[383629744,1757049041546,-275.48352916,0.00014487,2]
[383629745,1757049041556,-480.0,0.00014487,2]
[383629746,1757049041565,-480.0,0.00014487,2]
[383629747,1757049041574,-480.0,0.00014487,2]
[383629748,1757049041583,-480.0,0.00014487,2]
[383629749,1757049041593,-480.0,0.00014487,2]
[383629750,1757049041603,-541.03,0.00014487,2]
[383629751,1757049041613,-480.0,0.00014487,2]
[383629752,1757049041622,-480.0,0.00014487,2]
[383629753,1757049041632,-482.01486142,0.00014487,2]
[383629754,1757049041641,-480.0,0.00014487,2]
[383629755,1757049041650,-480.0,0.00014487,2]
[383629756,1757049041660,-480.0,0.00014487,2]
[383629757,1757049041670,-480.0,0.00014487,2]
[383629758,1757049041679,-480.0,0.00014487,2]
[383629759,1757049041688,-480.0,0.00014487,2]
[383629760,1757049041698,-579.15659177,0.00014487,2]
[383629761,1757049041707,-480.0,0.00014487,2]
[383629762,1757049041716,-480.0,0.00014487,2]
[383629763,1757049041726,-480.0,0.00014487,2]
[383629764,1757049041735,-480.0,0.00014487,2]
[383629765,1757049041744,-480.0,0.00014487,2]
[383629766,1757049041754,-480.0,0.00014487,2]
[383629767,1757049041763,-480.0,0.00014487,2]
[383629768,1757049041773,-480.0,0.00014487,2]
[383629769,1757049041782,-480.0,0.00014487,2]
[383629770,1757049041792,-480.0,0.00014487,2]
[383629771,1757049041801,-409.18584205,0.00014487,2]
[383629772,1757049041811,-481.9026613,0.00014487,2]
[383629773,1757049041820,-480.0,0.00014487,2]
[383629774,1757049041829,-480.0,0.00014487,2]
[383629775,1757049041838,-400.69404245,0.00014487,2]
[383629776,1757049041848,-480.83753717,0.00014487,2]
[383629777,1757049041861,-480.0,0.00014487,2]
[383629778,1757049041871,-183.8992078,0.00014487,2]
[383629779,1757049041880,-480.0,0.00014487,2]
[383629780,1757049041889,-500.0,0.00014487,2]
[383629781,1757049041900,-535.19,0.00014487,2]
[383629782,1757049041910,-480.0,0.00014487,2]
[383629783,1757049041920,-481.91891233,0.00014487,2]
[383629784,1757049041932,-480.0,0.00014487,2]
[383629785,1757049041942,-482.48670952,0.00014487,2]
[383629786,1757049041951,-480.0,0.00014487,2]
[383629787,1757049041960,-480.0,0.00014487,2]
[383629788,1757049041969,-583.52992489,0.00014487,2]
[383629789,1757049041979,-164.25561045,0.00014487,2]
[383629790,1757049041988,-480.0,0.00014487,2]
[383629791,1757049041997,-589.94,0.00014487,2]
[383629792,1757049042007,-559.3473552,0.00014487,2]
[383629793,1757049042016,-480.0,0.00014487,2]
[383629794,1757049042025,-500.0,0.00014488,2]
[383629795,1757049042035,-500.0,0.00014488,2]
[383629796,1757049042044,-500.0,0.00014488,2]
[383629797,1757049042053,-482.02423246,0.00014489,2]
[383629798,1757049042063,-480.0,0.00014489,2]
[383629799,1757049042072,-480.0,0.00014489,2]
[383629800,1757049042081,-2374.5495384,0.00014489,2]
[383629801,1757049042091,-500.0,0.00014489,2]
[383629802,1757049042100,-3577.2797906,0.00014489,2]
[383629803,1757049042109,-151.0,0.00014489,2]
[383629804,1757049042118,-1050.36894635,0.00014489,2]
[383629805,1757049042127,-151.0,0.00014489,2]
[383629806,1757049042136,-151.0,0.00014489,2]
[383629807,1757049042146,-3795.3610428,0.00014489,2]
[383629808,1757049042155,-500.0,0.0001449,2]
[383629809,1757049042164,-500.0,0.0001449,2]
[383629810,1757049042174,-501.78093821,0.00014493,2]
[383629811,1757049042183,-187.24,0.0001456,2]
[383629812,1757049042192,-501.78093821,0.00014562,2]
[383629813,1757049042203,-500.0,0.00014572,2]
[383629814,1757049042212,-500.0,0.00014582,2]
[383629815,1757049042221,-500.0,0.00014582,2]
[383629816,1757049042231,-500.0,0.00014582,2]
[383629817,1757049042240,-500.0,0.00014583,2]
[383629818,1757049042249,-480.0,0.00014659,2]
[383629819,1757049042258,-480.0,0.00014659,2]
[383629820,1757049042268,-2110.63,0.00014659,2]
[383629821,1757049042277,-480.0,0.00014659,2]
[383629822,1757049042287,-480.0,0.00014659,2]
[383629823,1757049042296,-493.32,0.00014659,2]
[383629824,1757049042306,-741.25,0.00014659,2]
[383629825,1757049042316,-480.0,0.00014659,2]
[383629826,1757049042325,-480.0,0.00014659,2]
[383629827,1757049042335,-480.0,0.00014659,2]
[383629828,1757049042344,-1691.59,0.0001466,2]
[383629829,1757049042354,-480.0,0.0001466,2]
[383629830,1757049042363,-1293.63,0.0001466,2]
[383629831,1757049042372,-151.0,0.0001466,2]
[383629832,1757049042381,-599.97,0.0001466,2]
[383629833,1757049042391,-480.0,0.0001466,2]
[383629834,1757049042401,-986.93,0.0001466,2]
[383629835,1757049042411,-480.0,0.0001466,2]
[383629836,1757049042420,-151.0,0.0001466,2]
[383629837,1757049042429,-480.0,0.0001466,2]
[383629838,1757049042439,-580.55,0.0001466,2]
[383629839,1757049042448,-480.0,0.0001466,2]
[383629840,1757049042458,-480.0,0.0001466,2]
[383629841,1757049042468,-480.0,0.0001466,2]
[383629842,1757049042477,-480.0,0.0001466,2]
[383629843,1757049042487,-480.0,0.0001466,2]
[383629844,1757049042496,-545.54,0.0001466,2]
[383629845,1757049042505,-973.04,0.0001466,2]
[383629846,1757049042515,-480.0,0.0001466,2]
[383629848,1757049042524,-483.45605673,0.0001466,2]
[383629849,1757049042534,-480.0,0.0001466,2]
[383629850,1757049042543,-697.75,0.0001466,2]
[383629851,1757049042553,-1152.57,0.0001466,2]
[383629852,1757049042563,-480.0,0.0001466,2]
[383629853,1757049042573,-615.01,0.0001466,2]
[383629854,1757049042583,-480.0,0.0001466,2]
[383629855,1757049042594,-709.97,0.0001466,2]
[383629856,1757049042603,-480.0,0.0001466,2]
[383629857,1757049042612,-480.0,0.0001466,2]
[383629858,1757049042622,-480.0,0.0001466,2]
[383629859,1757049042632,-480.0,0.0001466,2]
[383629860,1757049042642,-480.0,0.0001466,2]
[383629861,1757049042651,-547.28,0.0001466,2]
[383629862,1757049042660,-480.0,0.0001466,2]
[383629863,1757049042670,-480.0,0.0001466,2]
[383629864,1757049042680,-480.0,0.0001466,2]
[383629865,1757049042690,-151.0,0.0001466,2]
[383629866,1757049042700,-533.33,0.0001466,2]
[383629867,1757049042710,-613.82579862,0.0001466,2]
[383629869,1757049042720,-151.0,0.0001466,2]
[383629870,1757049042730,-151.0,0.0001466,2]
[383629871,1757049042739,-151.0,0.0001466,2]
[383629872,1757049042748,-1128.96,0.0001466,2]
[383629873,1757049042758,-151.0,0.0001466,2]
[383629874,1757049042767,-151.0,0.0001466,2]
[383629875,1757049042776,-151.0,0.0001466,2]
[383629876,1757049042787,-151.0,0.0001466,2]
[383629877,1757049042797,-480.0,0.00014661,2]
[383629878,1757049042807,-480.0,0.00014661,2]
[383629879,1757049042817,-480.0,0.00014661,2]
[383629880,1757049042826,-151.537508,0.00014661,2]
[383629881,1757049042836,-480.0,0.00014661,2]
[383629882,1757049042847,-151.0,0.00014661,2]
[383629883,1757049042861,-480.0,0.00014661,2]
[383629884,1757049042871,-151.0,0.00014661,2]
[383629885,1757049042880,-151.0,0.00014661,2]
[383629886,1757049042890,-151.0,0.00014661,2]
[383629887,1757049042900,-480.0,0.00014661,2]
[383629888,1757049042910,-480.0,0.00014661,2]
[383629889,1757049042920,-151.0,0.00014661,2]
[383629890,1757049042931,-480.0,0.00014661,2]
[383629891,1757049042941,-151.0,0.00014661,2]
[383629892,1757049042951,-480.0,0.00014661,2]
[383629893,1757049042960,-151.0,0.00014661,2]
[383629894,1757049042969,-542.74,0.00014661,2]
[383629895,1757049042979,-480.0,0.00014661,2]
[383629896,1757049042988,-155.25677816,0.00014661,2]
[383629897,1757049042997,-480.0,0.00014661,2]
[383629898,1757049043006,-480.0,0.00014661,2]
[383629899,1757049043015,-759.21,0.00014661,2]
[383629900,1757049043025,-191.972598,0.00014661,2]
[383629902,1757049043034,-191.972598,0.00014661,2]
[383629904,1757049043043,-480.0,0.00014661,2]
[383629905,1757049043052,-191.972598,0.00014661,2]
[383629906,1757049043061,-191.972598,0.00014661,2]
[383629907,1757049043071,-480.0,0.00014661,2]
[383629908,1757049043081,-480.0,0.00014661,2]
[383629909,1757049043090,-480.0,0.00014661,2]
[383629911,1757049043100,-486.10940224,0.00014661,2]
[383629912,1757049043109,-480.0,0.00014661,2]
[383629913,1757049043119,-480.0,0.00014661,2]
[383629914,1757049043129,-151.0,0.00014661,2]
[383629915,1757049043138,-213.277159,0.00014661,2]
[383629916,1757049043147,-480.0,0.00014661,2]
[383629917,1757049043156,-480.0,0.00014661,2]
[383629918,1757049043166,-480.0,0.00014661,2]
[383629919,1757049043175,-480.0,0.00014661,2]
[383629920,1757049043185,-480.0,0.00014661,2]
[383629921,1757049043194,-151.0,0.00014661,2]
[383629922,1757049043203,-480.81,0.00014661,2]
[383629923,1757049043213,-622.4,0.00014661,2]
[383629924,1757049043222,-480.0,0.00014661,2]
[383629926,1757049043232,-480.0,0.00014661,2]
[383629928,1757049043242,-484.85,0.00014661,2]
[383629930,1757049043251,-480.0,0.00014661,2]
[383629931,1757049043260,-480.0,0.00014661,2]
[383629932,1757049043270,-480.0,0.00014661,2]
[383629933,1757049043279,-480.0,0.00014661,2]
[383629934,1757049043289,-480.0,0.00014661,2]
[383629935,1757049043299,-480.0,0.00014661,2]
[383629936,1757049043308,-480.0,0.00014661,2]
[383629937,1757049043318,-480.0,0.00014661,2]
[383629938,1757049043327,-480.0,0.00014661,2]
[383629939,1757049043337,-623.63090436,0.00014661,2]
[383629940,1757049043346,-480.0,0.00014661,2]
[383629941,1757049043356,-480.0,0.00014661,2]
[383629942,1757049043365,-480.0,0.00014661,2]
[383629943,1757049043375,-181.690791,0.00014661,2]
[383629944,1757049043384,-151.0,0.00014661,2]
[383629945,1757049043393,-284.49760409,0.00014661,2]
[383629946,1757049043402,-480.0,0.00014661,2]
[383629947,1757049043412,-480.0,0.00014661,2]
[383629948,1757049043421,-480.0,0.00014661,2]
[383629949,1757049043431,-321.64208527,0.00014661,2]
[383629951,1757049043441,-480.0,0.00014661,2]
[383629953,1757049043450,-480.0,0.00014661,2]
[383629955,1757049043459,-480.0,0.00014661,2]
[383629956,1757049043469,-151.818724,0.00014661,2]
[383629957,1757049043478,-621.56687067,0.00014661,2]
[383629958,1757049043487,-480.0,0.00014661,2]
[383629959,1757049043496,-480.0,0.00014661,2]
[383629960,1757049043506,-480.0,0.00014661,2]
[383629961,1757049043515,-507.5,0.00014661,2]
[383629962,1757049043525,-480.0,0.00014661,2]
[383629963,1757049043535,-480.0,0.00014661,2]
[383629964,1757049043544,-480.0,0.00014661,2]
[383629965,1757049043553,-480.0,0.00014661,2]
[383629966,1757049043562,-480.0,0.00014661,2]
[383629967,1757049043572,-585.00476031,0.00014661,2]
[383629968,1757049043581,-151.0,0.00014661,2]
[383629969,1757049043591,-480.0,0.00014661,2]
[383629970,1757049043600,-480.0,0.00014661,2]
[383629971,1757049043610,-3336.34,0.00014661,2]
[383629972,1757049043621,-405.540778,0.00014661,2]
[383629973,1757049043631,-480.0,0.00014661,2]
[383629974,1757049043640,-270.70505612,0.00014661,2]
[383629975,1757049043649,-506.5,0.00014661,2]
[383629976,1757049043659,-151.0,0.00014661,2]
[383629977,1757049043670,-480.0,0.00014661,2]
[383629978,1757049043679,-480.0,0.00014661,2]
[383629979,1757049043782,-654.93,0.00014661,2]
[383629980,1757049043793,-496.49,0.00014661,2]
[383629981,1757049043802,-1220.71,0.00014661,2]
[383629982,1757049043815,-480.0,0.00014661,2]
[383629983,1757049043827,-480.0,0.00014661,2]
[383629984,1757049043837,-480.0,0.00014661,2]
[383629985,1757049043848,-480.0,0.00014661,2]
[383629986,1757049043861,-480.0,0.00014661,2]
[383629987,1757049043871,-1723.69,0.00014661,2]
[383629988,1757049043882,-480.0,0.00014661,2]
[383629989,1757049043892,-480.0,0.00014661,2]
[383629990,1757049043903,-151.581267,0.00014661,2]
[383629991,1757049043912,-383.80036426,0.00014661,2]
[383629992,1757049043922,-2404.45,0.00014661,2]
[383629993,1757049043933,-950.04,0.00014661,2]
[383629994,1757049043943,-480.0,0.00014661,2]
[383629995,1757049043953,-480.0,0.00014661,2]
[383629996,1757049043962,-480.0,0.00014661,2]
[383629997,1757049043973,-480.0,0.00014661,2]
[383629998,1757049043983,-480.0,0.00014661,2]
[383629999,1757049043993,-880.95,0.00014661,2]
[383630000,1757049044003,-480.0,0.00014661,2]
[383630001,1757049044014,-6282.02,0.00014661,2]
[383630002,1757049044024,-480.0,0.00014661,2]
[383630003,1757049044034,-2818.8,0.00014661,2]
[383630004,1757049044043,-491.67157076,0.00014661,2]
[383630005,1757049044053,-460.63180389,0.00014661,2]
[383630006,1757049044062,-578.56,0.00014661,2]
[383630007,1757049044071,-480.0,0.00014661,2]
[383630008,1757049044081,-500.74,0.00014661,2]
[383630009,1757049044092,-480.0,0.00014661,2]
[383630010,1757049044102,-1315.17,0.00014661,2]
[383630011,1757049044111,-480.0,0.00014661,2]
[383630012,1757049044120,-1212.47,0.00014661,2]
[383630013,1757049044130,-802.84,0.00014661,2]
[383630014,1757049044139,-543.73,0.00014661,2]
[383630015,1757049044149,-480.0,0.00014661,2]
[383630016,1757049044158,-480.0,0.00014661,2]
[383630017,1757049044168,-480.0,0.00014661,2]
[383630018,1757049044177,-480.0,0.00014661,2]
[383630019,1757049044186,-480.0,0.00014661,2]
[383630020,1757049044196,-480.0,0.00014661,2]
[383630021,1757049044206,-1884.9,0.00014661,2]
[383630022,1757049044215,-151.0,0.00014661,2]
[383630023,1757049044225,-790.65,0.00014661,2]
[383630024,1757049044234,-151.0,0.00014661,2]
[383630025,1757049044243,-480.0,0.00014661,2]
[383630026,1757049044254,-151.0,0.00014661,2]
[383630027,1757049044263,-151.0,0.00014661,2]
[383630028,1757049044272,-151.0,0.00014661,2]
[383630029,1757049044281,-151.0,0.00014661,2]
[383630030,1757049044291,-28345.00728445,0.00014661,2]
[383630031,1757049044300,-500.0,0.00014662,2]
[383630032,1757049044309,-500.0,0.00014662,2]
[383630033,1757049044319,-500.0,0.00014673,2]
[383630034,1757049044329,-500.0,0.00014673,2]
[383630035,1757049044339,-500.0,0.00014673,2]
[383630036,1757049044349,-3000.0,0.00014699,2]
[383630037,1757049044358,-299.0909927,0.000147,2]
[383630038,1757049044368,-480.0,0.0001476,2]
[383630039,1757049044378,-480.0,0.0001476,2]
[383630040,1757049044387,-1394.27,0.0001476,2]
[383630041,1757049044396,-480.0,0.0001476,2]
[383630042,1757049044405,-480.0,0.0001476,2]
[383630043,1757049044415,-480.0,0.0001476,2]
[383630044,1757049044425,-480.0,0.0001476,2]
[383630045,1757049044434,-480.0,0.0001476,2]
[383630046,1757049044443,-480.0,0.0001476,2]
[383630047,1757049044453,-480.0,0.0001476,2]
[383630048,1757049044462,-565.74816236,0.0001476,2]
[383630049,1757049044471,-480.0,0.0001476,2]
[383630050,1757049044481,-480.0,0.0001476,2]
[383630051,1757049044490,-480.0,0.0001476,2]
[383630052,1757049044499,-480.0,0.0001476,2]
[383630053,1757049044509,-480.0,0.0001476,2]
[383630054,1757049044518,-480.0,0.0001476,2]
[383630055,1757049044527,-480.0,0.0001476,2]
[383630056,1757049044537,-480.0,0.0001476,2]
[383630057,1757049044546,-480.0,0.0001476,2]
[383630058,1757049044556,-480.0,0.0001476,2]
[383630059,1757049044565,-480.0,0.0001476,2]
[383630060,1757049044577,-480.0,0.0001476,2]
[383630061,1757049044588,-480.0,0.0001476,2]
[383630062,1757049044598,-480.0,0.0001476,2]
[383630063,1757049044608,-480.0,0.0001476,2]
[383630064,1757049044617,-480.0,0.0001476,2]
[383630065,1757049044626,-480.0,0.0001476,2]
[383630066,1757049044636,-480.0,0.0001476,2]
[383630067,1757049044646,-480.0,0.0001476,2]
[383630068,1757049044655,-480.0,0.0001476,2]
[383630069,1757049044664,-480.0,0.0001476,2]
[383630070,1757049044673,-480.0,0.0001476,2]
[383630071,1757049044683,-483.26306616,0.0001476,2]
[383630072,1757049044693,-480.0,0.0001476,2]
[383630073,1757049044702,-480.0,0.0001476,2]
[383630074,1757049044712,-480.0,0.0001476,2]
[383630075,1757049044721,-480.0,0.0001476,2]
[383630076,1757049044730,-480.0,0.0001476,2]
[383630077,1757049044739,-480.0,0.0001476,2]
[383630078,1757049044751,-516.81306998,0.0001476,2]
[383630079,1757049044763,-480.0,0.0001476,2]
[383630080,1757049044773,-490.59583654,0.0001476,2]
[383630081,1757049044783,-497.17,0.0001476,2]
[383630082,1757049044792,-548.36,0.0001476,2]
[383630083,1757049044802,-482.54798358,0.0001476,2]
[383630084,1757049044812,-556.20221573,0.0001476,2]
[383630085,1757049044823,-480.0,0.0001476,2]
[383630086,1757049044834,-480.0,0.00014761,2]
[383630087,1757049044844,-573.97,0.00014761,2]
[383630088,1757049044856,-480.0,0.00014761,2]
[383630089,1757049044866,-480.0,0.00014761,2]
[383630090,1757049044875,-480.0,0.00014761,2]
[383630091,1757049044885,-480.0,0.00014761,2]
[383630092,1757049044895,-304.92800288,0.00014761,2]
[383630093,1757049044904,-480.0,0.00014761,2]
[383630094,1757049044913,-191.33443585,0.00014761,2]
[383630095,1757049044923,-480.0,0.00014761,2]
[383630096,1757049044934,-480.0,0.00014761,2]
[383630097,1757049044945,-544.63,0.00014761,2]
[383630098,1757049044955,-480.0,0.00014761,2]
[383630099,1757049044965,-480.0,0.00014761,2]
[383630100,1757049044976,-480.0,0.00014761,2]
[383630101,1757049044985,-480.0,0.00014761,2]
[383630102,1757049044994,-363.54,0.00014761,2]
[383630103,1757049045009,-480.0,0.00014761,2]
[383630104,1757049045019,-480.0,0.00014761,2]
[383630105,1757049045028,-480.0,0.00014761,2]
[383630106,1757049045038,-480.0,0.00014761,2]
[383630107,1757049045048,-480.0,0.00014761,2]
[383630108,1757049045057,-480.0,0.00014761,2]
[383630109,1757049045067,-430.49585533,0.00014761,2]
[383630110,1757049045076,-480.0,0.00014761,2]
[383630111,1757049045085,-480.0,0.00014761,2]
[383630112,1757049045095,-500.0,0.00014761,2]
[383630113,1757049045105,-500.0,0.00014761,2]
[383630114,1757049045114,-566.75802029,0.00014761,2]
[383630115,1757049045126,-480.0,0.00014761,2]
[383630116,1757049045136,-484.30655497,0.00014761,2]
[383630117,1757049045145,-480.0,0.00014761,2]
[383630118,1757049045157,-480.0,0.00014761,2]
[383630119,1757049045167,-273.60046686,0.00014762,2]
[383630120,1757049045176,-480.0,0.00014763,2]
[383630121,1757049045185,-206.203675,0.00014763,2]
[383630122,1757049045194,-151.0,0.00014763,2]
[383630123,1757049045206,-162.22799,0.00014763,2]
[383630124,1757049045215,-151.0,0.00014763,2]
[383630125,1757049045226,-151.0,0.00014763,2]
[383630126,1757049045235,-151.0,0.00014763,2]
[383630127,1757049045244,-151.0,0.00014763,2]
[383630128,1757049045253,-191.972598,0.00014763,2]
[383630129,1757049045264,-191.972598,0.00014763,2]
[383630130,1757049045273,-191.972598,0.00014763,2]
[383630131,1757049045282,-191.972598,0.00014763,2]
[383630132,1757049045292,-151.0,0.00014763,2]
[383630133,1757049045301,-4000.0,0.00014778,2]
[383630134,1757049045311,-300.0,0.0001478,2]
[383630135,1757049045320,-300.0,0.0001478,2]
[383630136,1757049045329,-300.0,0.0001478,2]
[383630137,1757049045338,-300.0,0.0001478,2]
[383630138,1757049045348,-300.0,0.0001478,2]
[383630139,1757049045357,-300.0,0.0001478,2]
[383630140,1757049045368,-300.0,0.0001478,2]
[383630141,1757049045377,-300.0,0.0001478,2]
[383630142,1757049045387,-300.0,0.0001478,2]
[383630143,1757049045397,-300.0,0.0001478,2]
[383630144,1757049045407,-300.0,0.0001478,2]
[383630145,1757049045417,-300.0,0.0001478,2]
[383630146,1757049045426,-300.0,0.0001478,2]
[383630147,1757049045436,-300.0,0.0001478,2]
[383630148,1757049045445,-300.0,0.0001478,2]
[383630149,1757049045455,-600.0,0.0001478,2]
[383630150,1757049045464,-151.0,0.0001478,2]
[383630151,1757049045473,-480.0,0.00014933,2]
[383630152,1757049045483,-480.0,0.00014933,2]
[383630153,1757049045493,-2110.63,0.00014933,2]
[383630154,1757049045502,-493.2517897,0.00014933,2]
[383630155,1757049045512,-480.0,0.00014933,2]
[383630156,1757049045522,-493.32,0.00014933,2]
[383630157,1757049045531,-741.25,0.00014933,2]
[383630158,1757049045541,-480.0,0.00014933,2]
[383630159,1757049045550,-480.0,0.00014933,2]
[383630160,1757049045559,-1691.59,0.00014934,2]
[383630161,1757049045569,-480.0,0.00014934,2]
[383630162,1757049045578,-1293.63,0.00014934,2]
[383630163,1757049045588,-599.97,0.00014934,2]
[383630164,1757049045597,-480.0,0.00014934,2]
[383630165,1757049045607,-986.93,0.00014934,2]
[383630166,1757049045616,-480.0,0.00014934,2]
[383630167,1757049045625,-480.0,0.00014934,2]
[383630168,1757049045635,-580.55,0.00014934,2]